Cogmind - Beta 15 @@@ ROGUE MODE // 2025.07.09 @ 21:20:57 Player: thej Result: Destroyed by G-47 Trooper with Particle Gun Performance ------------- Evolutions (3) 1500 Regions Visited (8) 1600 Robots Destroyed (46) 230 Value Destroyed (1481) 1481 Prototype IDs (23) 460 Alien Tech Used (0) 0 Bonus (350) 350 TOTAL SCORE: 5621 Bonus ------- Follower Combat Kills 50 Aligned with FarCom 300 Cogmind --------- Core Integrity 0/700 Matter 36/300 Energy 74/100 System Corruption 11% Temperature Cool (29) Movement Core (350) Ox6 Location -7/Factory Parts ------- > --- POWER (1) -------- (None) > --- PROPULSION (4) --- Potential Leg > --- UTILITY (3) ------ Large Storage Unit Transmission Jammer > --- WEAPON (5) ------- (None) > --- INVENTORY (15) --- Improved Deuterium Engine Micro Nuclear Core Xenon Bombardment Thruster Xenon Bombardment Thruster Cooled VTOL Module Large Storage Unit Large Storage Unit Advanced ECM Suite Gauss Cannon Gauss Cannon Gauss Cannon Peak State ------------ > --- POWER ------------ Improved Deuterium Engine > --- PROPULSION ------- Potential Leg Potential Leg Armored Huge Wheel > --- UTILITY ---------- Large Storage Unit Transmission Jammer Improved Medium Armor Plating > --- WEAPON ----------- Gatling Laser Gatling Laser Gatling Laser Ion Cannon Ion Cannon > --- INVENTORY -------- Light Deuterium Engine Light Deuterium Engine Armored Huge Wheel Armored Huge Wheel Armored Huge Wheel Heat Sink Large Storage Unit Large Storage Unit ECM Suite Heavy Assault Rifle Mining Laser [Rating: 62] Favorites ----------- Power Light Ion Engine Engine Light Ion Engine Power Core Micro Nuclear Core Propulsion Potential Leg Leg Potential Leg Wheel Armored Huge Wheel Hover Unit Improved Hover Unit Flight Unit Xenon Bombardment Thruster Utility Large Storage Unit Device Transmission Jammer Storage Large Storage Unit Processor Targeting Computer Protection Improved Medium Armor Plating Weapon Gatling Laser Energy Gun Gatling Laser Energy Cannon Ion Cannon Ballistic Gun Light Assault Rifle Ballistic Cannon Assault Cannon Build | -11 -10 -10 -9 -9 -9 -8 -8 -7 ------- Run | Yrd Mat Min Mat Min Exi Min Mat Fac Slots Evolved 6 | . . . 2 . . . 2 2 Power . | . . . . . . . . . Propulsion 2 | . . . 2 . . . . . Utility 1 | . . . . . . . . 1 Weapon 3 | . . . . . . . 2 1 Parts Attached 65 | 6 4 1 11 . 2 2 4 35 Power 9 | 1 1 . 2 . . 1 1 3 Engine 8 | 1 1 . 2 . . 1 1 2 Core 1 | . . . . . . . . 1 Reactor . | . . . . . . . . . Propulsion 18 | 2 . . 6 . 2 1 . 7 Treads . | . . . . . . . . . Leg 9 | 2 . . 2 . 2 . . 3 Wheel 1 | . . . . . . . . 1 Hover 5 | . . . 4 . . 1 . . Flight 3 | . . . . . . . . 3 Utility 15 | 1 3 . 1 . . . . 10 Device 7 | . . . . . . . . 7 Storage 6 | 1 2 . 1 . . . . 2 Processor 1 | . 1 . . . . . . . Hackware . | . . . . . . . . . Protection 1 | . . . . . . . . 1 Artifact . | . . . . . . . . . Weapon 23 | 2 . 1 2 . . . 3 15 Energy Gun 9 | 2 . . . . . . . 7 Energy Cannon 3 | . . . . . . . 3 . Ballistic Gun 8 | . . 1 2 . . . . 5 Ballistic Cannon 3 | . . . . . . . . 3 Launcher . | . . . . . . . . . Special Weapon . | . . . . . . . . . Impact Weapon . | . . . . . . . . . Slashing Weapon . | . . . . . . . . . Piercing Weapon . | . . . . . . . . . Special Melee Weapon . | . . . . . . . . . Unidentified Prototypes . | . . . . . . . . . Parts Lost 24 | . . . 1 . . 1 . 22 Power 2 | . . . . . . . . 2 Propulsion 8 | . . . 1 . . 1 . 6 Utility 4 | . . . . . . . . 4 Weapon 10 | . . . . . . . . 10 Highest Loss Streak 12 | . . . 1 . . 1 . 12 To Critical Strikes 1 | . . . . . . . . 1 Average Backups 10 | 1 6 10 8 12 13 13 10 9 Power 1 | . 1 2 2 2 2 2 2 1 Propulsion 3 | . 1 2 . 3 4 4 3 3 Utility 2 | . 2 3 2 3 3 3 3 3 Weapon 2 | . 1 3 3 4 4 4 2 1 Tool/Special . | . . . . . . . . . Unused Backups 18 | . . 1 1 . . . 2 14 Power 4 | . . 1 . . . . . 3 Propulsion 8 | . . . . . . . 2 6 Utility 2 | . . . 1 . . . . 1 Weapon 4 | . . . . . . . . 4 Tool/Special . | . . . . . . . . . Average Slot Usage (%) 96 | . 99 100 94 100 100 99 99 94 Engine 8 | . 14 14 11 11 11 11 9 4 Core 1 | . . . . . . . . 2 Leg 22 | . 28 28 25 . 12 22 18 23 Wheel 1 | . . . . . . . . 2 Hover 8 | . . . 13 44 31 21 18 . Device 4 | . . . . . . . . 9 Storage 9 | . 16 14 11 11 11 11 9 7 Processor 5 | . 10 14 11 11 11 11 9 . Protection 2 | . . . . . . . . 4 Energy Gun 9 | . 27 21 . . . . . 10 Energy Cannon 2 | . . . . . . . 11 4 Ballistic Gun 14 | . . 6 21 22 22 22 24 14 Ballistic Cannon 2 | . . . . . . . . 5 Peak Build Rating 62 | 6 8 8 15 15 31 31 40 62 Average Rating 36 | 4 6 8 10 15 24 30 35 54 On Entrance 17 | . 6 8 8 15 15 31 31 40 Naked Turns . | . . . . . . . . . Heaviest Build 63 | 12 19 17 27 27 27 27 41 63 Greatest Support 69 | 20 20 20 40 28 60 60 60 69 Greatest Overweight (x) 2 | . . . 1 . . . . 2 Average Overweight (x) . | . . . . . . . . . Largest Inventory Capacity 25 | 8 10 10 15 15 15 15 15 25 Average Capacity 14 | 6 9 10 14 15 15 15 15 15 Most Carried 15 | 4 10 10 12 12 14 14 15 15 Average Carried 11 | 1 6 10 8 12 13 13 11 12 Final Capacity 15 | 8 10 10 15 15 15 15 15 15 Final Carried 14 | 2 10 10 12 12 14 13 11 11 Class Distribution -------------------- 46% | Mutant 29% | Scavenger-Skirmisher 13% | Skirmisher 10% | Infiltrator-Skirmisher Dominant Class ---------------- Mutant | -10/Materials Mutant | -10/Mines Mutant | -9/Materials Mutant | -9/Mines Mutant | -9/Exiles Mutant | -8/Mines Skirmisher | -8/Materials Scavenger-Skirmisher | -7/Factory Resources | -11 -10 -10 -9 -9 -9 -8 -8 -7 ----------- Run | Yrd Mat Min Mat Min Exi Min Mat Fac Matter Collected 1572 | 246 158 30 117 16 10 122 51 822 Remotely . | . . . . . . . . . Salvage Created 1605 | . 313 14 51 30 . 142 71 984 Parts 89 | . 19 6 3 3 . 9 4 45 Haulers Intercepted . | . . . . . . . . . Recyclers Shooed 1 | . . . . . . 1 . . Parts Field Recycled . | . . . . . . . . . Retrieved Matter . | . . . . . . . . . Parts Self-Destructed . | . . . . . . . . . Prevented . | . . . . . . . . . Kills | -11 -10 -10 -9 -9 -9 -8 -8 -7 ------- Run | Yrd Mat Min Mat Min Exi Min Mat Fac Combat Hostiles Destroyed 37 | . 11 . 1 2 . 3 . 20 Guns 33 | . 11 . 1 2 . 3 . 16 Cannons 4 | . . . . . . . . 4 Classes Destroyed 11 | . 3 1 1 . . 2 . 4 Worker 1 | . . . . . . 1 . . Tunneler 1 | . . 1 . . . . . . Recycler 3 | . . . . . . 1 . 2 Watcher 4 | . 2 . . . . . 2 . Swarmer 15 | . 6 . . 2 . 3 . 4 Grunt 8 | . 5 . . . . . . 3 Sentry 5 | . . . 1 . . . . 4 Specialist 2 | . . . . . . . . 2 Hunter 1 | . . . . . . . . 1 Programmer 5 | . . . . . . . . 5 Heavy 1 | . . . . . . . . 1 Best Kill Streak 6 | . 6 1 1 2 . 3 2 4 Combat Bots Only 6 | . 6 . 1 2 . 2 . 4 Max Kills in Single Turn 2 | . 2 1 1 1 . 1 1 2 Gunslinging . | . . . . . . . . . Exploded . | . . . . . . . . . Melee . | . . . . . . . . . Uniques/NPCs Destroyed . | . . . . . . . . . Combat | -11 -10 -10 -9 -9 -9 -8 -8 -7 -------- Run | Yrd Mat Min Mat Min Exi Min Mat Fac Hostile Shots Fired 366 | . 47 . 6 1 . 56 1 255 Missed 95 | . 12 . 1 1 . 13 1 67 Hits 271 | . 35 . 5 . . 43 . 188 Melee 3 | . . . . . . . . 3 Projectile 268 | . 35 . 5 . . 43 . 185 AOE 1 | . . . . . . . . 1 Critical Strikes 10 | . . . 2 1 . . . 7 Damage Taken 4470 | . 312 . 82 48 . 340 . 3688 Core 870 | . 65 . 15 30 . 59 . 701 Absorbed by Shields . | . . . . . . . . . Core Remaining (%) 87 | 100 . 74 . . . 74 100 . Volleys Fired 118 | . 28 1 6 4 . 25 4 50 Largest 5 | . 2 2 2 2 . 2 4 5 Hottest 360 | . 100 100 40 43 . 43 123 360 Shots Fired 368 | . 56 2 12 8 . 50 16 224 Gun 301 | . 56 2 12 8 . 50 12 161 Cannon 67 | . . . . . . . 4 63 Launcher . | . . . . . . . . . Special . | . . . . . . . . . Kinetic 227 | . . . 12 8 . 50 12 145 Thermal 137 | . 56 2 . . . . 4 75 Explosive . | . . . . . . . . . Electromagnetic 4 | . . . . . . . . 4 Robot Hit Streak 12 | . 8 1 10 2 . 6 3 12 Robot Miss Streak 10 | . 7 . 2 2 . 8 3 10 Penetration Max 1 | . . . . . . . . 1 Secondary Targets 2 | . 2 . . . . . . . Max Gunslinging Chain 1 | . 1 . . . . . . . Shots Hit Robots 212 | . 33 1 10 3 . 24 7 134 Core Hits 120 | . 18 1 4 3 . 6 5 83 Critical Kills 1 | . . . . . . 1 . . Critical Parts Destroyed . | . . . . . . . . . Critical Strikes 12 | . 7 . 1 . . 1 . 3 Burn 7 | . 7 . . . . . . . Destroy 2 | . . . 1 . . 1 . . Blast 3 | . . . . . . . . 3 Melee Attacks . | . . . . . . . . . Impact . | . . . . . . . . . Slashing . | . . . . . . . . . Piercing . | . . . . . . . . . Sneak Attacks . | . . . . . . . . . Combat Hostiles . | . . . . . . . . . Follow-up Attacks . | . . . . . . . . . Damage Inflicted 3712 | . 447 13 80 41 . 341 74 2716 Guns 2986 | . 447 13 80 41 . 316 74 2015 Cannons 686 | . . . . . . . . 686 Explosions . | . . . . . . . . . Melee . | . . . . . . . . . Ramming 40 | . . . . . . 25 . 15 Kinetic 1984 | . . . 80 41 . 316 74 1473 Thermal 1652 | . 447 13 . . . . . 1192 Explosive . | . . . . . . . . . Electromagnetic 36 | . . . . . . . . 36 Impact . | . . . . . . . . . Slashing . | . . . . . . . . . Piercing . | . . . . . . . . . Highest Corruption 11 | . . . . . . . . 11 Average Corruption 4 | . . . . . . . . 4 Corruption Purged . | . . . . . . . . . Corruption Blocked . | . . . . . . . . . Effects 16 | . . . . . . . . 16 Message Errors 3 | . . . . . . . . 3 Matter Fused 2 | . . . . . . . . 2 Heat Flow Errors 2 | . . . . . . . . 2 Data Loss (minor) 4 | . . . . . . . . 4 Data Loss (major) 3 | . . . . . . . . 3 Weapon Failures 2 | . . . . . . . . 2 Overload Shots . | . . . . . . . . . Overflow Damage 30 | . . . . . . . . 30 Projectiles 30 | . . . . . . . . 30 Explosions . | . . . . . . . . . Melee . | . . . . . . . . . Knockbacks 6 | . . . . . . . . 6 Impact . | . . . . . . . . . Kinetic 5 | . . . . . . . . 5 Secondary 1 | . . . . . . . . 1 Self-Inflicted Damage . | . . . . . . . . . Shots . | . . . . . . . . . Rammed . | . . . . . . . . . Targets Rammed 3 | . . . . . . 2 . 1 Kicked 3 | . . . . . . 2 . 1 Crushed . | . . . . . . . . . Highest Temperature 648 | . 237 39 24 8 . . 96 648 Average Temperature 124 | . 85 20 11 4 . . 49 148 Received Heat Transfer 1071 | . 84 . 51 . . . . 936 Effects 12 | . . . . . . . . 12 Shutdowns 3 | . . . . . . . . 3 Energy Bleed 3 | . . . . . . . . 3 Interference 1 | . . . . . . . . 1 Matter Decay 1 | . . . . . . . . 1 Short Circuit 3 | . . . . . . . . 3 Damage (core) 1 | . . . . . . . . 1 Siege Activations . | . . . . . . . . . Martial Activations . | . . . . . . . . . Shielding Activations . | . . . . . . . . . Robots Disrupted . | . . . . . . . . . Combat Hostiles . | . . . . . . . . . Robots Corrupted . | . . . . . . . . . Combat Hostiles . | . . . . . . . . . Parts Fried . | . . . . . . . . . Impact Corruptions . | . . . . . . . . . Robots Melted . | . . . . . . . . . Combat Hostiles . | . . . . . . . . . Parts Melted 10 | . 7 . . . . . . 3 Heat Transferred 4318 | . 1850 37 . . . . . 2431 Parts Sabotaged . | . . . . . . . . . Parts Stolen . | . . . . . . . . . Parts Stripped . | . . . . . . . . . Power Chain Reactions . | . . . . . . . . . Alert | -11 -10 -10 -9 -9 -9 -8 -8 -7 ------- Run | Yrd Mat Min Mat Min Exi Min Mat Fac Maximum Alert Level . | . . . . . . . . . Low Security (%) 100 | 100 100 100 100 100 . 100 100 100 Level 1 . | . . . . . . . . . Level 2 . | . . . . . . . . . Level 3 . | . . . . . . . . . Level 4 . | . . . . . . . . . Level 5 . | . . . . . . . . . High Security . | . . . . . . . . . Max Security . | . . . . . . . . . Peak Influence 190 | . 124 45 30 65 . 40 14 190 Initial 45 | . . 45 . . . . . . Average 28 | . 17 11 4 33 . 5 . 45 Influence Increases 1217 | . 265 9 72 65 . 80 14 712 Destroy 0b10 Robot/C 780 | . 220 . 60 40 . 60 . 400 Destroy 0b10 Robot/NC 45 | . 10 5 . . . 10 10 10 Destroy Leader 208 | . 34 . 10 10 . 10 4 140 Allied During Kill 2 | . . . 2 . . . . . Successful Hack 4 | . . 4 . . . . . . Disable Machine 75 | . . . . . . . . 75 Destroy Structure 13 | . 1 . . . . . . 12 Partial Spotted 15 | . . . . . . . . 15 Lose Combat Pursuer 75 | . . . . 15 . . . 60 Influence Decreases 1155 | . 149 125 72 30 35 80 14 650 Entered New Map 106 | . . 71 . . 35 . . . Time Decay 826 | . 149 54 62 30 . 70 14 447 Lost Part 223 | . . . 10 . . 10 . 203 Squads Dispatched 9 | . 1 . . . . . . 8 Investigation . | . . . . . . . . . Extermination 6 | . . . . . . . . 6 Reinforcement 3 | . 1 . . . . . . 2 Assault . | . . . . . . . . . Garrison . | . . . . . . . . . Intercept . | . . . . . . . . . Searches Triggered . | . . . . . . . . . Construction Impeded . | . . . . . . . . . Haulers Reinforced . | . . . . . . . . . Active Scanning Responses . | . . . . . . . . . Cargo Convoy Interrupts . | . . . . . . . . . Stealth | -11 -10 -10 -9 -9 -9 -8 -8 -7 --------- Run | Yrd Mat Min Mat Min Exi Min Mat Fac Distress Signals 5 | . 2 . 3 . . . . . Communications Jammed . | . . . . . . . . . Distress Signals . | . . . . . . . . . Times Spotted 68 | . 19 . 3 3 . 4 3 36 Peak Tracking Total 8 | . 4 . 2 3 . 3 3 8 Tactical Retreats 6 | . . . . 1 . . . 5 Traps | -11 -10 -10 -9 -9 -9 -8 -8 -7 ------- Run | Yrd Mat Min Mat Min Exi Min Mat Fac Traps Triggered 1 | . 1 . . . . . . . Indirectly . | . . . . . . . . . Trap Hack Attempts . | . . . . . . . . . Triggered . | . . . . . . . . . Disarmed . | . . . . . . . . . Reprogrammed . | . . . . . . . . . Reused . | . . . . . . . . . Traps Extracted . | . . . . . . . . . Installed . | . . . . . . . . . Triggered . | . . . . . . . . . Machines | -11 -10 -10 -9 -9 -9 -8 -8 -7 ---------- Run | Yrd Mat Min Mat Min Exi Min Mat Fac Machines Disabled 5 | . . . . . . . . 5 Max in Single Turn 1 | . . . . . . . . 1 Machines Repaired . | . . . . . . . . . Machines Dismantled . | . . . . . . . . . Machines Sabotaged . | . . . . . . . . . Overloaded Fab Kills . | . . . . . . . . . Hacking | -11 -10 -10 -9 -9 -9 -8 -8 -7 --------- Run | Yrd Mat Min Mat Min Exi Min Mat Fac Machines Accessed 13 | . 4 1 . . 5 . 1 2 Terminals 6 | . 3 1 . . . . 1 1 Fabricators . | . . . . . . . . . Repair Stations . | . . . . . . . . . Recycling Units 1 | . 1 . . . . . . . Scanalyzers . | . . . . . . . . . Garrison Access 1 | . . . . . . . . 1 Total Hacks 64 | . 8 1 . . 50 . 2 3 Successful 53 | . 1 1 . . 50 . 1 . Failed 11 | . 7 . . . . . 1 3 Catastrophic 4 | . 2 . . . . . . 2 Database Lockouts . | . . . . . . . . . Manual 1 | . . . . . 1 . . . Terminals 7 | . 3 1 . . . . 2 1 Fabricators . | . . . . . . . . . Repair Stations . | . . . . . . . . . Recycling Units 5 | . 5 . . . . . . . Scanalyzers . | . . . . . . . . . Garrison Access 2 | . . . . . . . . 2 Terminal Hacks 52 | . . 1 . . 50 . 1 . Record 50 | . . . . . 49 . 1 . Dispatch Records 1 | . . 1 . . . . . . Proto ID Catalog 1 | . . . . . 1 . . . Fabricator Hacks . | . . . . . . . . . Repair Station Hacks . | . . . . . . . . . Recycling Unit Hacks 1 | . 1 . . . . . . . Report Inventory 1 | . 1 . . . . . . . Scanalyzer . | . . . . . . . . . Garrison Access Hacks . | . . . . . . . . . Unauthorized Hacks . | . . . . . . . . . Terminals . | . . . . . . . . . Fabricators . | . . . . . . . . . Repair Stations . | . . . . . . . . . Recycling Units . | . . . . . . . . . Scanalyzers . | . . . . . . . . . Garrison Access . | . . . . . . . . . Data Cores Recovered . | . . . . . . . . . Used . | . . . . . . . . . Hacking Detections 8 | . 4 1 . . . . 1 2 Full Trace Events . | . . . . . . . . . Feedback Events . | . . . . . . . . . Feedback Blocked . | . . . . . . . . . Robot Schematics Acquired . | . . . . . . . . . Robots Built . | . . . . . . . . . Authchips . | . . . . . . . . . Time . | . . . . . . . . . Total Robot Build Rating . | . . . . . . . . . Part Schematics Acquired . | . . . . . . . . . Parts Built . | . . . . . . . . . Authchips . | . . . . . . . . . Time . | . . . . . . . . . Total Part Build Rating . | . . . . . . . . . Parts Repaired . | . . . . . . . . . Time . | . . . . . . . . . Parts Recycled . | . . . . . . . . . Recycled Matter . | . . . . . . . . . Retrieved Matter . | . . . . . . . . . Retrieved Components . | . . . . . . . . . Parts Scanalyzed . | . . . . . . . . . Part Schematics Acquired . | . . . . . . . . . Parts Damaged . | . . . . . . . . . Bothacking | -11 -10 -10 -9 -9 -9 -8 -8 -7 ------------ Run | Yrd Mat Min Mat Min Exi Min Mat Fac Used RIF Installer . | . . . . . . . . . Robots Hacked . | . . . . . . . . . Non-combat . | . . . . . . . . . Combat . | . . . . . . . . . Robot Hacks Applied . | . . . . . . . . . Relay Couplers Released . | . . . . . . . . . Fabnet Peak Effective % . | . . . . . . . . . Robots Rewired . | . . . . . . . . . Allies Hacked . | . . . . . . . . . Hacks Repelled . | . . . . . . . . . Allies | -11 -10 -10 -9 -9 -9 -8 -8 -7 -------- Run | Yrd Mat Min Mat Min Exi Min Mat Fac Total Allies 1 | . . 1 . . . . . . Largest Group 1 | . . 1 1 . . . . . Highest-Rated Group 31 | . . 31 31 . . . . . Highest-Rated Ally 31 | . . 31 31 . . . . . Total Orders . | . . . . . . . . . Ally Attacks 11 | . . . 11 . . . . . Total Damage 124 | . . . 124 . . . . . Kills 2 | . . . 2 . . . . . Allies Corrupted . | . . . . . . . . . Allies Melted . | . . . . . . . . . Intel | -11 -10 -10 -9 -9 -9 -8 -8 -7 ------- Run | Yrd Mat Min Mat Min Exi Min Mat Fac Active Infowar (turns) 1266 | . . . . . . . . 1266 Jamming 1265 | . . . . . . . . 1265 ECM 587 | . . . . . . . . 587 Robot Analysis Total . | . . . . . . . . . Derelict Logs Recovered 1 | . . 1 . . . . . . Drone Launches . | . . . . . . . . . Drone Recoveries . | . . . . . . . . . Exploration | -11 -10 -10 -9 -9 -9 -8 -8 -7 ------------- Run | Yrd Mat Min Mat Min Exi Min Mat Fac Turns Passed 5289 | 59 598 279 326 80 391 722 232 2602 Spaces Moved 3745 | 42 393 222 260 56 579 647 222 1324 Core 7 | 7 . . . . . . . . Treads . | . . . . . . . . . Legs 3246 | 35 393 222 148 . 258 647 222 1321 Wheels . | . . . . . . . . . Hover 489 | . . . 112 56 321 . . . Flight 3 | . . . . . . . . 3 Fastest Speed 45 | 50 120 120 48 48 48 90 90 45 Average Speed 95 | 108 120 120 89 48 66 90 90 102 Slowest Speed 204 | 120 120 120 126 48 90 90 90 204 Overloaded Moves 128 | . . . . . . . . 128 Propulsion Burnouts . | . . . . . . . . . Robots Hopped . | . . . . . . . . . Potential Cave-ins 3 | . . . . . . . . 3 Cave-ins Triggered 2 | . . . . . . . . 2 Exploration Rate (%) 40 | 4 54 58 19 11 93 82 20 20 Regions Visited 8 Branch Regions 4 Pre-discovered Areas 2 | . . 1 . . 1 . . . Known Exits Taken . | . . . . . . . . . Unknown Exits Taken 8 | 1 1 1 1 1 1 1 1 . Scrap Searched 2 | . . 1 . 1 . . . . Spaces Dug 7 | . . . . . . . . 7 Terrain Destroyed 16 | . . . . . . . . 16 Melee . | . . . . . . . . . Projectile 16 | . . . . . . . . 16 AOE . | . . . . . . . . . Terrain Rammed . | . . . . . . . . . Walls Destroyed . | . . . . . . . . . Machines Disabled . | . . . . . . . . . Actions | -11 -10 -10 -9 -9 -9 -8 -8 -7 --------- Run | Yrd Mat Min Mat Min Exi Min Mat Fac Total 5197 | 55 464 234 342 101 582 741 249 2429 Wait 1124 | . 23 5 47 42 . 64 3 940 Move 3737 | 41 392 221 259 55 578 646 221 1324 Hop . | . . . . . . . . . Pick Up 86 | 8 13 2 12 . 2 1 7 41 Fast Attach 2 | . . . . . . . . 2 Attach 43 | 6 3 . 5 . . 1 4 24 Detach 2 | . . . . . . . . 2 Swap 33 | . 2 3 6 . 2 1 1 18 Drop 49 | . 3 2 7 . . 1 9 27 Fire 118 | . 28 1 6 4 . 25 4 50 Melee . | . . . . . . . . . Ram . | . . . . . . . . . Kick 3 | . . . . . . 2 . 1 Crush . | . . . . . . . . . Escape Stasis . | . . . . . . . . . Rewire . | . . . . . . . . . Trap . | . . . . . . . . . Miscellaneous . | . . . . . . . . . Route ------- -11/Scrapyard -10/Materials -10/Mines -9/Materials -9/Mines -9/Exiles (discovered 2 exits: [*Min x2]) -8/Mines -8/Materials -7/Factory History --------- Turn | Location | Event 6 | -11/Scrapyard | Discovered new exit (range 14) 60 | -11/Scrapyard | Entered Materials 314 | -10/Materials | Build established: Mutant 573 | -10/Materials | Discovered new exit (range 15) 658 | -10/Materials | Entered Mines 795 | -10/Mines | Received a Mining Laser from a helpful Derelict 931 | -10/Mines | Discovered new exit (range 5) 937 | -10/Mines | Entered Materials 937 | -9/Materials | Accompanied by 1 ally 937 | -9/Materials | Evolved 2 slots: Propulsion x2 996 | -9/Materials | Discovered new exit (range 5) 1201 | -9/Materials | Met 8R-AWN 1263 | -9/Materials | Entered Mines 1264 | -9/Mines | Followed 8R-AWN into the Mines 1292 | -9/Mines | Met a Derelict bent on vengeance 1339 | -9/Mines | Discovered new exit (range 5) 1343 | -9/Mines | Entered Exiles 1351 | -9/Exiles | Discovered new exit (range 15) 1356 | -9/Exiles | Welcomed by 8R-AWN 1367 | -9/Exiles | Met EX-HEX 1393 | -9/Exiles | Met EX-DEC 1404 | -9/Exiles | Learned location of Zion (-7) 1425 | -9/Exiles | Discovered new exit (range 11) 1462 | -9/Exiles | Met EX-BIN 1471 | -9/Exiles | Aligned with FarCom system 1471 | -9/Exiles | Given EX-Vault access code 1494 | -9/Exiles | Opened EX-Vault 1497 | -9/Exiles | Found Prototype Leg 1498 | -9/Exiles | Found Prototype Leg 1500 | -9/Exiles | Identified Potential Leg (x2) 1522 | -9/Exiles | Warned to stay clear of 0b10 Research branches 1586 | -9/Exiles | Visited The Gauntlet 1734 | -9/Exiles | Left Exiles lab with Potential Leg 1734 | -9/Exiles | Entered Mines 2357 | -8/Mines | Discovered new exit (range 8) 2456 | -8/Mines | Entered Materials 2456 | -8/Materials | Evolved 2 slots: Weapon x2 2604 | -8/Materials | Discovered new exit (range 16) 2688 | -8/Materials | Entered Factory 2688 | -7/Factory | Evolved 2 slots: Utility x1, Weapon x1 2767 | -7/Factory | Build established: Skirmisher 3455 | -7/Factory | Build established: Infiltrator-Skirmisher 3779 | -7/Factory | Lost 3 parts (1u2w) 4018 | -7/Factory | Build established: Scavenger-Skirmisher 4866 | -7/Factory | Core integrity fell below 50% 5085 | -7/Factory | Crushed by falling debris 5095 | -7/Factory | Crushed by falling debris 5095 | -7/Factory | System corruption reached 10% 5283 | -7/Factory | Core integrity fell below 20% 5290 | -7/Factory | Destroyed by G-47 Trooper with Particle Gun Last Messages --------------- Gauss Cannon destroyed. M-28 Smith repairs G-47 Trooper Lgt. Nuclear Core. R-06 Scavenger collects Imp. Heat Sink. Lgt. Angular Momentum Engine destroyed. R-06 Scavenger collects Wheel. M-28 Smith repairs G-47 Trooper. T7TQV ZHEE:TEC AC0HZZHH K-01 Serf collects debris. Xenon Bombardment Thruster destroyed. M-28 Smith repairs G-47 Trooper Aluminum Leg. R-06 Scavenger collects Gravmag System. Xenon Bombardment Thruster destroyed. M-28 Smith repairs G-47 Trooper Imp. Heat Sink. Xenon Bombardment Thruster destroyed. M-28 Smith repairs G-47 Trooper Aluminum Leg. U-05 Engineer lays Concrete. K-01 Serf collects debris. U-05 Engineer lays Concrete. [Achievement: 5k Club] Map ----- +----------------------------------------------------+ | ?????????????????????????????????????????????????? | | ?????????????????????????????????????????????????? | | ?????????????????????????????????????????????????? | | ?????????????????????????????????????????????????? | | ?????????????????????????????????????????????????? | | ?????????????????????????????????????????????????? | | ?????????????????????????????????????????????????? | | ?????????????????????????????????????????????????? | | ?????????????????????????????????????????????????? | | ?????????????????????????????????????????????????? | | ????????????????????????????????????????????????## | | ????????????????????????????????????????????????# | | ??????????????????? ????????????????????????????# | | ??????????????????? ????????????????????????????# | | ?????????????######/#?????###############???????# | | ???????????? ???? #???????# | | ??????????? ??? " #?##????# | | ???????????? ???? "%" # #????# | | ????????????? ???? " # #????# | | ?????????????? ???? ??????# | | ??????????????? ???? #???????# | | ????????????????? !??????? #???????# | | ?????????????######+########???## ##??????# | | ?????????????# g ##### # % [ =######### | | ?????????????# % g ;# ## "% = | | ?????????????# g @; #### | | ?????????????# g ;###??# | | ?????????????# "mg ;#????# | | ?????????????# " g ;#????# | | ?????????????# "" u##????# | | ?????????????# """" ##????# | | ?????????????# """"k##??################+### | | ?????????????# """" #???# # | | ?????????????# "" "" k #???# # | | ?????????????# ""G"" #???# """""" # | | ?????????????##############???# """""" #^ | | ??????????????????????????????# """""" !!= # | | ??????????????????????????????# """""" != # | | ??????????????????????????????# != # | | ??????????????????????????????#################### | | | | | | | | | | | | | | | | | | | | | +----------------------------------------------------+ Best States ------------- Heat Dissipation 48 Energy Generation 18 Energy Capacity 290 Matter Stores 303 Matter Capacity 400 Sight Range 16 Terrain Scan Density 10 ECM Strength 1 Jamming Range 12 Armor Coverage 225 Evasion (%) 66 Targeting Accuracy 5 Item Schematics ----------------- None Robot Schematics ------------------ None Fabricated ------------ Nothing Repaired ---------- Nothing Alien Tech Used ----------------- None Achievements -------------- 5k Club Librarian More Dakka Please Please Form A Line Serviceable Loadout Unlikely Earthworm Challenges ------------ None Game ------ Seed WeightMetafieldMallet Manual? 0 Play Time 01:22:54 Cumulative 5.0 hours Start 2025.07.09 @ 19:41:03 End 2025.07.09 @ 21:20:57 Sessions 1 Manual Loads 0 Difficulty Rogue Special Mode None Game No. 8 Rogue 8 Adventurer 0 Explorer 0 Win Type - Total 0 Types 0/0/0/0/0/0/0/0/0/0 Lore% 9 Gallery% 8 Achievement% 10 Wizard Run 0 Options --------- Layout 1 ASCII 0 Keyboard 0 Movement Mouse Keybinds 0 Fullscreen 1 Font 24/Smallcaps Map View 50x35 Zoom Use 0% Tactical HUD 0 Map Filters NONE Filters NONE Steam 1 RUN: ff4ca8b7-8b04-4b1d-aae4-860d915ad43a